[Event "*** Titled Tuesday Blitz"]
[Site "Chess.com"]
[Date "2018.01.02"]
[Round "6"]
[White "Alexander_Moskalenko"]
[Black "GGuseinov"]
[Result "0-1"]
[WhiteElo "2752"]
[BlackElo "2706"]
[TimeControl "180+2"]
[EndTime "14:21:51 PST"]
[Termination "GGuseinov won by resignation"]

1. Nf3 {[%clk 0:03:01.9]} 1... g6 {[%clk 0:02:59.9]} 2. c4 {[%clk 0:03:03.8]}
2... Bg7 {[%clk 0:03:00.6]} 3. d4 {[%clk 0:03:04.6]} 3... d6 {[%clk 0:02:58.2]}
4. e3 {[%clk 0:03:06.5]} 4... Nf6 {[%clk 0:02:55.8]} 5. Be2 {[%clk 0:03:08.4]}
5... O-O {[%clk 0:02:55.4]} 6. Nc3 {[%clk 0:03:10.3]} 6... Nbd7 {[%clk
0:02:52.5]} 7. O-O {[%clk 0:03:12.2]} 7... e5 {[%clk 0:02:53]} 8. b4 {[%clk
0:03:09.5]} 8... Re8 {[%clk 0:02:50.5]} 9. a4 {[%clk 0:03:08.1]} 9... e4 {[%clk
0:02:45.5]} 10. Nd2 {[%clk 0:03:08.7]} 10... Nf8 {[%clk 0:02:43.8]} 11. a5
{[%clk 0:03:07.4]} 11... h5 {[%clk 0:02:37]} 12. b5 {[%clk 0:03:00.7]} 12... Bf5
{[%clk 0:02:34.2]} 13. Ba3 {[%clk 0:02:57.1]} 13... N8h7 {[%clk 0:02:29.3]} 14.
Nd5 {[%clk 0:02:56.5]} 14... h4 {[%clk 0:02:18.5]} 15. Qb3 {[%clk 0:02:40]}
15... h3 {[%clk 0:02:11.4]} 16. g3 {[%clk 0:02:40.6]} 16... Ng5 {[%clk
0:02:07.1]} 17. b6 {[%clk 0:02:32.3]} 17... axb6 {[%clk 0:02:02.2]} 18. axb6
{[%clk 0:02:32.9]} 18... Nxd5 {[%clk 0:01:57.4]} 19. cxd5 {[%clk 0:02:34.8]}
19... cxb6 {[%clk 0:01:54.1]} 20. Nc4 {[%clk 0:02:33.5]} 20... Bf8 {[%clk
0:01:45.9]} 21. Qxb6 {[%clk 0:02:27.1]} 21... Qd7 {[%clk 0:01:38.1]} 22. Nxd6
{[%clk 0:02:26.8]} 22... Rxa3 {[%clk 0:01:27.2]} 23. Nxe8 {[%clk 0:02:17]} 23...
Qxe8 {[%clk 0:01:25.7]} 24. Qxb7 {[%clk 0:02:05]} 24... Kg7 {[%clk 0:01:00.7]}
25. Qc6 {[%clk 0:01:51.6]} 25... Qb8 {[%clk 0:00:57.2]} 26. Rab1 {[%clk
0:01:02.9]} 26... Qd8 {[%clk 0:00:48.6]} 27. Rb2 {[%clk 0:00:39.7]} 27... Nf3+
{[%clk 0:00:36.2]} 28. Kh1 {[%clk 0:00:26.4]} 28... Ra7 {[%clk 0:00:32.4]} 29.
Rb7 {[%clk 0:00:22.9]} 29... Rxb7 {[%clk 0:00:27.2]} 30. Qxb7 {[%clk 0:00:24]}
30... Qa5 {[%clk 0:00:28]} 31. Bxf3 {[%clk 0:00:19.7]} 31... exf3 {[%clk
0:00:28]} 32. d6 {[%clk 0:00:20]} 32... Bd3 {[%clk 0:00:18.1]} 33. Rg1 {[%clk
0:00:16.2]} 33... Bxd6 {[%clk 0:00:16.1]} 34. Qxf3 {[%clk 0:00:17.1]} 34... Qa2
{[%clk 0:00:07.8]} 35. Re1 {[%clk 0:00:13.6]} 35... Qc2 {[%clk 0:00:08.2]} 36.
Kg1 {[%clk 0:00:13.9]} 36... Bb4 {[%clk 0:00:05]} 37. Ra1 {[%clk 0:00:07.8]}
37... Bc3 {[%clk 0:00:06.2]} 38. Qd1 {[%clk 0:00:07.4]} 38... Bxa1 {[%clk
0:00:05.9]} 39. Qxa1 {[%clk 0:00:09.3]} 39... Be4 {[%clk 0:00:06.4]} 40. d5+
{[%clk 0:00:10]} 40... Kh7 {[%clk 0:00:06.9]} 41. d6 {[%clk 0:00:11.4]} 41...
Qe2 {[%clk 0:00:06.1]} 42. Qf1 {[%clk 0:00:11.6]} 42... Qxf1+ {[%clk 0:00:04.4]}
43. Kxf1 {[%clk 0:00:12.7]} 43... Bc6 {[%clk 0:00:05.8]} 44. g4 {[%clk
0:00:11.8]} 44... Kg7 {[%clk 0:00:06.8]} 45. f3 {[%clk 0:00:13.2]} 45... Kf6
{[%clk 0:00:06.7]} 46. Kf2 {[%clk 0:00:14.2]} 46... Ke6 {[%clk 0:00:08]} 47. Kg3
{[%clk 0:00:14.2]} 47... Kxd6 {[%clk 0:00:09.3]} 48. e4 {[%clk 0:00:15.8]} 48...
Ke5 {[%clk 0:00:10.4]} 49. Kxh3 {[%clk 0:00:17.3]} 49... Kf4 {[%clk 0:00:11.4]}
50. Kg2 {[%clk 0:00:18.9]} 50... g5 {[%clk 0:00:12.6]} 51. Kf2 {[%clk 0:00:19]}
51... f6 {[%clk 0:00:13.7]} 52. Ke2 {[%clk 0:00:19]} 52... Bb5+ {[%clk
0:00:14.9]} 53. Kf2 {[%clk 0:00:20.5]} 53... Ba4 {[%clk 0:00:15.7]} 54. Ke2
{[%clk 0:00:21.5]} 54... Bb3 {[%clk 0:00:16.9]} 55. Kf2 {[%clk 0:00:14.8]} 55...
Bd1 {[%clk 0:00:17.7]} 56. e5 {[%clk 0:00:13.1]} 56... fxe5 {[%clk 0:00:17.9]}
57. Kg2 {[%clk 0:00:14.9]} 57... Bxf3+ {[%clk 0:00:18.8]} 58. Kh3 {[%clk
0:00:16.8]} 58... Bxg4+ {[%clk 0:00:19.8]} 0-1

[Event "*** Titled Tuesday Blitz"]
[Site "Chess.com"]
[Date "2018.01.02"]
[Round "6"]
[White "ramses135"]
[Black "TregubovP"]
[Result "1/2-1/2"]
[WhiteElo "2387"]
[BlackElo "2522"]
[TimeControl "180+2"]
[EndTime "14:21:51 PST"]
[Termination "Game drawn - insufficient material"]

1. e4 {[%clk 0:00:05.5]} 1... c5 {[%clk 0:02:55]} 2. Nc3 {[%clk 0:00:07.4]} 2...
e6 {[%clk 0:02:55.9]} 3. Nf3 {[%clk 0:00:09.3]} 3... Nc6 {[%clk 0:02:47.8]} 4.
d4 {[%clk 0:00:10.3]} 4... cxd4 {[%clk 0:02:48.1]} 5. Nxd4 {[%clk 0:00:12.2]}
5... Nf6 {[%clk 0:02:49.1]} 6. Nxc6 {[%clk 0:00:12.3]} 6... bxc6 {[%clk
0:02:49.2]} 7. e5 {[%clk 0:00:13.9]} 7... Nd5 {[%clk 0:02:50.2]} 8. Ne4 {[%clk
0:00:15.6]} 8... Qc7 {[%clk 0:02:50.5]} 9. f4 {[%clk 0:00:16.1]} 9... Qb6 {[%clk
0:02:51.5]} 10. c4 {[%clk 0:00:14.9]} 10... Bb4+ {[%clk 0:02:52.2]} 11. Ke2
{[%clk 0:00:12.6]} 11... f5 {[%clk 0:02:53.7]} 12. Nf2 {[%clk 0:00:12.1]} 12...
Ba6 {[%clk 0:02:46.8]} 13. Kf3 {[%clk 0:00:12.5]} 13... Ne7 {[%clk 0:02:47.5]}
14. Be3 {[%clk 0:00:12.9]} 14... Bc5 {[%clk 0:02:48.2]} 15. Bxc5 {[%clk
0:00:13.3]} 15... Qxc5 {[%clk 0:02:49.3]} 16. b3 {[%clk 0:00:14.6]} 16... g5
{[%clk 0:02:46.7]} 17. fxg5 {[%clk 0:00:15.7]} 17... Qxe5 {[%clk 0:02:46.5]} 18.
Bd3 {[%clk 0:00:14.7]} 18... c5 {[%clk 0:02:47.3]} 19. Nh3 {[%clk 0:00:11.6]}
19... Bb7+ {[%clk 0:02:46.2]} 20. Kf2 {[%clk 0:00:12.9]} 20... Qd4+ {[%clk
0:02:47.2]} 21. Kf1 {[%clk 0:00:14]} 21... Ng6 {[%clk 0:02:46]} 22. Be2 {[%clk
0:00:14.9]} 22... Qe5 {[%clk 0:02:38]} 23. Rc1 {[%clk 0:00:11.7]} 23... O-O
{[%clk 0:02:36.5]} 24. Bf3 {[%clk 0:00:13]} 24... Bxf3 {[%clk 0:02:34.6]} 25.
Qxf3 {[%clk 0:00:14.9]} 25... d5 {[%clk 0:02:27]} 26. Re1 {[%clk 0:00:14.8]}
26... Qd6 {[%clk 0:02:18.4]} 27. g3 {[%clk 0:00:14.6]} 27... d4 {[%clk
0:02:17.6]} 28. Nf4 {[%clk 0:00:15]} 28... e5 {[%clk 0:02:15.7]} 29. Nd5 {[%clk
0:00:16]} 29... e4 {[%clk 0:02:14]} 30. Qh5 {[%clk 0:00:17.2]} 30... Rae8 {[%clk
0:02:02.4]} 31. Kg2 {[%clk 0:00:18.2]} 31... f4 {[%clk 0:02:02.6]} 32. gxf4
{[%clk 0:00:12.8]} 32... Nxf4+ {[%clk 0:02:00.9]} 33. Nxf4 {[%clk 0:00:13.9]}
33... Qxf4 {[%clk 0:02:01.6]} 34. Rhf1 {[%clk 0:00:15.8]} 34... Qe5 {[%clk
0:02:00.2]} 35. Qg4 {[%clk 0:00:13.2]} 35... e3 {[%clk 0:02:00.1]} 36. h4 {[%clk
0:00:13.5]} 36... d3 {[%clk 0:01:55.3]} 37. Qd7 {[%clk 0:00:09.4]} 37... e2
{[%clk 0:01:45.9]} 38. Rxf8+ {[%clk 0:00:10.1]} 38... Rxf8 {[%clk 0:01:43.7]}
39. Qxd3 {[%clk 0:00:12]} 39... Re8 {[%clk 0:01:20.9]} 40. Qd5+ {[%clk
0:00:11.3]} 40... Qxd5+ {[%clk 0:01:19.8]} 41. cxd5 {[%clk 0:00:13.2]} 41... Re4
{[%clk 0:01:18]} 42. Kf3 {[%clk 0:00:13.2]} 42... Rxh4 {[%clk 0:01:17.6]} 43.
Rxe2 {[%clk 0:00:14.5]} 43... Rd4 {[%clk 0:01:19.2]} 44. Re5 {[%clk 0:00:12.7]}
44... Kf7 {[%clk 0:01:18.7]} 45. d6 {[%clk 0:00:13.7]} 45... Rxd6 {[%clk
0:01:16.9]} 46. Rxc5 {[%clk 0:00:14.7]} 46... Ra6 {[%clk 0:01:17.5]} 47. a4
{[%clk 0:00:15.2]} 47... Rb6 {[%clk 0:01:18.3]} 48. Rb5 {[%clk 0:00:14.7]} 48...
Rc6 {[%clk 0:01:07.9]} 49. Rb7+ {[%clk 0:00:14.9]} 49... Kg6 {[%clk 0:01:08.7]}
50. Kf4 {[%clk 0:00:14.6]} 50... Rc3 {[%clk 0:01:07.4]} 51. b4 {[%clk
0:00:11.2]} 51... Rc4+ {[%clk 0:01:08.4]} 52. Ke5 {[%clk 0:00:12.3]} 52... Kxg5
{[%clk 0:01:08.4]} 53. Kd5 {[%clk 0:00:13.6]} 53... Rf4 {[%clk 0:01:06.3]} 54.
Rxh7 {[%clk 0:00:08.9]} 54... Rxb4 {[%clk 0:01:05.4]} 55. Rxa7 {[%clk
0:00:10.2]} 55... Kf6 {[%clk 0:01:06.4]} 56. a5 {[%clk 0:00:10.4]} 56... Rb1
{[%clk 0:01:05.7]} 57. a6 {[%clk 0:00:10]} 57... Ra1 {[%clk 0:01:06.9]} 58. Kc6
{[%clk 0:00:10.8]} 58... Ke6 {[%clk 0:01:07.3]} 59. Ra8 {[%clk 0:00:11.3]} 59...
Rc1+ {[%clk 0:01:06.6]} 60. Kb7 {[%clk 0:00:12.1]} 60... Rb1+ {[%clk 0:01:07.8]}
61. Ka7 {[%clk 0:00:13]} 61... Kd7 {[%clk 0:01:07.4]} 62. Rb8 {[%clk 0:00:14.1]}
62... Rc1 {[%clk 0:01:08]} 63. Rb3 {[%clk 0:00:12.4]} 63... Kc7 {[%clk
0:01:07.2]} 64. Rb2 {[%clk 0:00:13.7]} 64... Rc3 {[%clk 0:01:07.7]} 65. Rh2
{[%clk 0:00:14.3]} 65... Rc1 {[%clk 0:01:07.7]} 66. Rh7+ {[%clk 0:00:15.1]}
66... Kc8 {[%clk 0:01:08.8]} 67. Rh8+ {[%clk 0:00:15.2]} 67... Kc7 {[%clk
0:01:10]} 68. Rh7+ {[%clk 0:00:16.2]} 68... Kc8 {[%clk 0:01:10.7]} 69. Rh5
{[%clk 0:00:17.3]} 69... Kc7 {[%clk 0:01:11.6]} 70. Rg5 {[%clk 0:00:18]} 70...
Kc8 {[%clk 0:01:12.7]} 71. Kb6 {[%clk 0:00:17.3]} 71... Rb1+ {[%clk 0:01:12.2]}
72. Rb5 {[%clk 0:00:14.3]} 72... Rxb5+ {[%clk 0:01:11.5]} 73. Kxb5 {[%clk
0:00:16.2]} 73... Kb8 {[%clk 0:01:12.6]} 74. a7+ {[%clk 0:00:18.1]} 74... Kxa7
{[%clk 0:01:13.4]} 1/2-1/2

[Event "*** Titled Tuesday Blitz"]
[Site "Chess.com"]
[Date "2018.01.02"]
[Round "6"]
[White "LuisFSiles"]
[Black "51616516516"]
[Result "0-1"]
[WhiteElo "2219"]
[BlackElo "2092"]
[TimeControl "180+2"]
[EndTime "14:22:11 PST"]
[Termination "51616516516 won by resignation"]

1. d4 {[%clk 0:03:01.9]} 1... Nf6 {[%clk 0:02:57.5]} 2. c4 {[%clk 0:02:59.6]}
2... g6 {[%clk 0:02:58.1]} 3. Nc3 {[%clk 0:03:00]} 3... Bg7 {[%clk 0:02:58.7]}
4. e4 {[%clk 0:03:00.4]} 4... d6 {[%clk 0:02:42.1]} 5. Nf3 {[%clk 0:02:58.2]}
5... O-O {[%clk 0:02:42.4]} 6. Be2 {[%clk 0:02:58.6]} 6... e5 {[%clk 0:02:42.7]}
7. O-O {[%clk 0:02:59]} 7... Nc6 {[%clk 0:02:42.6]} 8. d5 {[%clk 0:03:00]} 8...
Ne7 {[%clk 0:02:43.7]} 9. b4 {[%clk 0:03:00.9]} 9... Nh5 {[%clk 0:02:43]} 10.
Re1 {[%clk 0:03:01.1]} 10... Nf4 {[%clk 0:02:38.5]} 11. Bf1 {[%clk 0:03:00.4]}
11... f5 {[%clk 0:02:36.9]} 12. g3 {[%clk 0:02:51.5]} 12... fxe4 {[%clk
0:02:37.2]} 13. Nxe4 {[%clk 0:02:51.5]} 13... Nh3+ {[%clk 0:02:37.4]} 14. Kg2
{[%clk 0:02:47]} 14... Bg4 {[%clk 0:02:26.6]} 15. Be2 {[%clk 0:02:47.9]} 15...
Nf5 {[%clk 0:02:12.7]} 16. Nfg5 {[%clk 0:02:31.1]} 16... Bxe2 {[%clk 0:02:02.7]}
17. Qxe2 {[%clk 0:02:20.1]} 17... Nxg5 {[%clk 0:02:03.2]} 18. Bxg5 {[%clk
0:02:20.8]} 18... Qd7 {[%clk 0:02:04]} 19. Be3 {[%clk 0:02:14.9]} 19... h6
{[%clk 0:01:47.1]} 20. f3 {[%clk 0:02:10.9]} 20... g5 {[%clk 0:01:42.3]} 21.
Rad1 {[%clk 0:02:05.9]} 21... a5 {[%clk 0:01:42.1]} 22. b5 {[%clk 0:01:54.1]}
22... b6 {[%clk 0:01:43.1]} 23. Rf1 {[%clk 0:01:47.8]} 23... Rf7 {[%clk
0:01:43.7]} 24. Bg1 {[%clk 0:01:44.9]} 24... Raf8 {[%clk 0:01:43.2]} 25. Rd3
{[%clk 0:01:41.7]} 25... Ne7 {[%clk 0:01:26.8]} 26. h3 {[%clk 0:01:35.8]} 26...
Ng6 {[%clk 0:01:17.5]} 27. a4 {[%clk 0:01:34.2]} 27... Qf5 {[%clk 0:01:17.3]}
28. Be3 {[%clk 0:01:26.2]} 28... Bf6 {[%clk 0:01:10.9]} 29. Rf2 {[%clk
0:01:26.7]} 29... Bd8 {[%clk 0:01:07.1]} 30. Rd1 {[%clk 0:01:26.9]} 30... Rg7
{[%clk 0:00:51.3]} 31. Kh2 {[%clk 0:01:19.4]} 31... h5 {[%clk 0:00:45.5]} 32.
Rg1 {[%clk 0:01:15.6]} 32... h4 {[%clk 0:00:41.6]} 33. g4 {[%clk 0:01:04.5]}
33... Qf7 {[%clk 0:00:34.9]} 34. Re1 {[%clk 0:00:59.8]} 34... Nf4 {[%clk
0:00:34]} 35. Bxf4 {[%clk 0:01:00.5]} 35... Qxf4+ {[%clk 0:00:34.2]} 36. Kg2
{[%clk 0:00:49.6]} 36... Rgf7 {[%clk 0:00:34.8]} 37. Ref1 {[%clk 0:00:47.6]}
37... Kg7 {[%clk 0:00:33.9]} 38. Qd2 {[%clk 0:00:47]} 38... Qxd2 {[%clk
0:00:26]} 39. Nxd2 {[%clk 0:00:48.9]} 39... Rf4 {[%clk 0:00:25.9]} 40. Re2
{[%clk 0:00:47.9]} 40... Rd4 {[%clk 0:00:21.5]} 41. Rd1 {[%clk 0:00:44.7]} 41...
Rff4 {[%clk 0:00:19.9]} 42. Re4 {[%clk 0:00:43.9]} 42... Rfxe4 {[%clk
0:00:19.9]} 43. fxe4 {[%clk 0:00:45.6]} 43... Rd3 {[%clk 0:00:21.1]} 44. Kh2
{[%clk 0:00:41.2]} 44... Ra3 {[%clk 0:00:21.9]} 45. c5 {[%clk 0:00:37]} 45...
bxc5 {[%clk 0:00:20.3]} 46. Nc4 {[%clk 0:00:37.9]} 46... Rxa4 {[%clk 0:00:20.9]}
47. Rc1 {[%clk 0:00:39.4]} 47... Ra2+ {[%clk 0:00:20.7]} 48. Kg1 {[%clk
0:00:39.1]} 48... a4 {[%clk 0:00:21.9]} 49. b6 {[%clk 0:00:40.6]} 49... cxb6
{[%clk 0:00:22.3]} 50. Nxd6 {[%clk 0:00:42.2]} 50... a3 {[%clk 0:00:17.8]} 51.
Nf5+ {[%clk 0:00:39.3]} 51... Kf7 {[%clk 0:00:17.8]} 52. d6 {[%clk 0:00:38.9]}
52... Ke6 {[%clk 0:00:17.2]} 53. Rd1 {[%clk 0:00:39.4]} 53... Kd7 {[%clk
0:00:17.9]} 54. Ne3 {[%clk 0:00:38.6]} 54... Rb2 {[%clk 0:00:19]} 55. Nc4 {[%clk
0:00:39.4]} 55... Rb3 {[%clk 0:00:13.8]} 56. Nxe5+ {[%clk 0:00:39.8]} 56... Ke6
{[%clk 0:00:09.8]} 57. Nc6 {[%clk 0:00:40.9]} 57... a2 {[%clk 0:00:10.7]} 58.
Nxd8+ {[%clk 0:00:41.7]} 58... Kd7 {[%clk 0:00:12.2]} 59. e5 {[%clk 0:00:35.7]}
59... Rb1 {[%clk 0:00:13.3]} 60. e6+ {[%clk 0:00:37.4]} 60... Kxd8 {[%clk
0:00:14.2]} 61. e7+ {[%clk 0:00:38.7]} 61... Kd7 {[%clk 0:00:15.7]} 62. e8=Q+
{[%clk 0:00:32]} 62... Kxe8 {[%clk 0:00:16.7]} 63. d7+ {[%clk 0:00:30]} 63...
Kd8 {[%clk 0:00:17.8]} 64. Kg2 {[%clk 0:00:24.4]} 64... Rxd1 {[%clk 0:00:17.7]}
0-1

[Event "*** Titled Tuesday Blitz"]
[Site "Chess.com"]
[Date "2018.01.02"]
[Round "6"]
[White "Adham_Fawzy"]
[Black "MITerryble"]
[Result "0-1"]
[WhiteElo "2417"]
[BlackElo "2666"]
[TimeControl "180+2"]
[EndTime "14:22:18 PST"]
[Termination "MITerryble won by resignation"]

1. e4 {[%clk 0:03:01.9]} 1... e6 {[%clk 0:03:01]} 2. d4 {[%clk 0:03:02.4]} 2...
d5 {[%clk 0:03:02.1]} 3. Nd2 {[%clk 0:03:04]} 3... Be7 {[%clk 0:03:02.6]} 4.
Ngf3 {[%clk 0:03:04.8]} 4... Nf6 {[%clk 0:03:03.4]} 5. e5 {[%clk 0:03:04.3]}
5... Nfd7 {[%clk 0:03:04.5]} 6. Bd3 {[%clk 0:03:05.1]} 6... c5 {[%clk 0:03:06]}
7. c3 {[%clk 0:03:05.8]} 7... Nc6 {[%clk 0:03:07.5]} 8. O-O {[%clk 0:03:00.4]}
8... g5 {[%clk 0:03:08.4]} 9. h3 {[%clk 0:02:44.1]} 9... h5 {[%clk 0:03:08.5]}
10. Re1 {[%clk 0:02:36.7]} 10... cxd4 {[%clk 0:03:02.4]} 11. Nxd4 {[%clk
0:02:33]} 11... Ndxe5 {[%clk 0:02:54.6]} 12. Bb5 {[%clk 0:02:33.5]} 12... Bd7
{[%clk 0:02:54.5]} 13. N2f3 {[%clk 0:02:31.3]} 13... Nxf3+ {[%clk 0:02:53.2]}
14. Nxf3 {[%clk 0:02:32]} 14... g4 {[%clk 0:02:52.3]} 15. hxg4 {[%clk 0:02:29]}
15... hxg4 {[%clk 0:02:52.3]} 16. Bxc6 {[%clk 0:02:30.2]} 16... Bxc6 {[%clk
0:02:38.8]} 17. Ne5 {[%clk 0:02:29.7]} 17... g3 {[%clk 0:02:39]} 18. fxg3 {[%clk
0:02:22.8]} 18... Bc5+ {[%clk 0:02:26]} 19. Be3 {[%clk 0:02:22.7]} 19... Qb6
{[%clk 0:02:23.4]} 20. Bd4 {[%clk 0:02:17.8]} 20... Rh7 {[%clk 0:02:09.3]} 21.
b4 {[%clk 0:02:03.7]} 21... Bxd4+ {[%clk 0:02:10]} 22. Qxd4 {[%clk 0:02:05]}
22... Qxd4+ {[%clk 0:02:08.6]} 23. cxd4 {[%clk 0:02:06.9]} 23... Rg7 {[%clk
0:00:54.9]} 24. Kf2 {[%clk 0:02:05.1]} 24... Bb5 {[%clk 0:00:46.8]} 25. a4
{[%clk 0:02:02]} 25... Bd7 {[%clk 0:00:47.6]} 26. Rac1 {[%clk 0:01:55.2]} 26...
f6 {[%clk 0:00:45.3]} 27. Nd3 {[%clk 0:01:52.2]} 27... b6 {[%clk 0:00:33.1]} 28.
Nf4 {[%clk 0:01:47.9]} 28... Re7 {[%clk 0:00:29]} 29. Re3 {[%clk 0:01:18]} 29...
Kf7 {[%clk 0:00:25.6]} 30. Rc7 {[%clk 0:01:17.3]} 30... a6 {[%clk 0:00:19.2]}
31. a5 {[%clk 0:01:03.8]} 31... bxa5 {[%clk 0:00:19.6]} 32. bxa5 {[%clk
0:01:05.7]} 32... Rae8 {[%clk 0:00:21.2]} 33. Ra7 {[%clk 0:01:06.2]} 33... Bb5
{[%clk 0:00:21.7]} 34. Rxe7+ {[%clk 0:01:06.4]} 34... Rxe7 {[%clk 0:00:23.6]}
35. Rc3 {[%clk 0:01:07.4]} 35... Bc4 {[%clk 0:00:24.6]} 36. Nd3 {[%clk
0:01:01.2]} 36... Rb7 {[%clk 0:00:22.7]} 37. Nc5 {[%clk 0:01:01.2]} 37... Rb5
{[%clk 0:00:23.4]} 38. Ra3 {[%clk 0:00:53.1]} 38... e5 {[%clk 0:00:24.4]} 39.
Ke3 {[%clk 0:00:53.9]} 39... Rb2 {[%clk 0:00:23.7]} 40. dxe5 {[%clk 0:00:38.3]}
40... fxe5 {[%clk 0:00:25.5]} 41. Kf3 {[%clk 0:00:39.7]} 41... Ke7 {[%clk
0:00:24.4]} 42. Na4 {[%clk 0:00:35]} 42... Rb5 {[%clk 0:00:09.4]} 43. Nb6 {[%clk
0:00:35.6]} 43... Rc5 {[%clk 0:00:08]} 44. g4 {[%clk 0:00:32.7]} 44... Bb5
{[%clk 0:00:06.6]} 45. g5 {[%clk 0:00:31.4]} 45... d4 {[%clk 0:00:06]} 46. g6
{[%clk 0:00:20.5]} 46... Kf6 {[%clk 0:00:05.8]} 47. Ke4 {[%clk 0:00:21.1]} 47...
Bc6+ {[%clk 0:00:05.5]} 48. Kd3 {[%clk 0:00:22.4]} 48... Kxg6 {[%clk 0:00:07.3]}
49. g3 {[%clk 0:00:22.2]} 49... Bb5+ {[%clk 0:00:08.6]} 50. Ke4 {[%clk
0:00:23.1]} 50... Bc6+ {[%clk 0:00:09.9]} 51. Kd3 {[%clk 0:00:24]} 51... Kf5
{[%clk 0:00:11.3]} 52. Kd2 {[%clk 0:00:22.4]} 52... e4 {[%clk 0:00:11.2]} 53.
Nc8 {[%clk 0:00:22.8]} 53... Ke6 {[%clk 0:00:09.4]} 54. Nb6 {[%clk 0:00:22.5]}
54... Bb5 {[%clk 0:00:10.4]} 55. g4 {[%clk 0:00:22.8]} 55... e3+ {[%clk
0:00:11.5]} 56. Kd1 {[%clk 0:00:23.7]} 56... d3 {[%clk 0:00:08.6]} 57. Na4
{[%clk 0:00:24.7]} 57... e2+ {[%clk 0:00:09.1]} 58. Kd2 {[%clk 0:00:24.4]} 58...
Rc2+ {[%clk 0:00:09.9]} 59. Ke3 {[%clk 0:00:25.6]} 59... e1=Q+ {[%clk
0:00:10.5]} 60. Kd4 {[%clk 0:00:27.5]} 60... Qb4+ {[%clk 0:00:10.7]} 61. Ke3
{[%clk 0:00:28.1]} 61... Re2+ {[%clk 0:00:11.4]} 62. Kf3 {[%clk 0:00:29]} 62...
Qe4+ {[%clk 0:00:13.2]} 0-1

[Event "*** Titled Tuesday Blitz"]
[Site "Chess.com"]
[Date "2018.01.02"]
[Round "6"]
[White "Blitzstream"]
[Black "VerdeNotte"]
[Result "1/2-1/2"]
[WhiteElo "2508"]
[BlackElo "2665"]
[TimeControl "180+2"]
[EndTime "14:22:41 PST"]
[Termination "Game drawn - insufficient material"]

1. e4 {[%clk 0:03:01.9]} 1... c5 {[%clk 0:02:59.2]} 2. Nf3 {[%clk 0:02:59.5]}
2... d6 {[%clk 0:03:00.6]} 3. b3 {[%clk 0:02:59.2]} 3... Nf6 {[%clk 0:03:01.3]}
4. Nc3 {[%clk 0:02:28.4]} 4... Bg4 {[%clk 0:02:59.4]} 5. Bb2 {[%clk 0:02:26]}
5... Nc6 {[%clk 0:02:58.8]} 6. Be2 {[%clk 0:02:26.8]} 6... Bxf3 {[%clk
0:02:47.9]} 7. Bxf3 {[%clk 0:02:27.6]} 7... e5 {[%clk 0:02:49.8]} 8. O-O {[%clk
0:02:27.8]} 8... Be7 {[%clk 0:02:49.1]} 9. Re1 {[%clk 0:02:27.9]} 9... O-O
{[%clk 0:02:49.8]} 10. Ne2 {[%clk 0:02:23.7]} 10... Re8 {[%clk 0:02:40]} 11. Ng3
{[%clk 0:02:23.8]} 11... Bf8 {[%clk 0:02:40.5]} 12. c3 {[%clk 0:02:20.3]} 12...
d5 {[%clk 0:02:41.4]} 13. d3 {[%clk 0:02:05]} 13... d4 {[%clk 0:02:32.1]} 14. c4
{[%clk 0:02:00]} 14... g6 {[%clk 0:02:32]} 15. h4 {[%clk 0:01:58.3]} 15... Bh6
{[%clk 0:02:30.6]} 16. h5 {[%clk 0:01:56.8]} 16... Bf4 {[%clk 0:02:26.4]} 17.
Bc1 {[%clk 0:01:53.2]} 17... Bxg3 {[%clk 0:02:26.1]} 18. fxg3 {[%clk 0:01:53.6]}
18... Nxh5 {[%clk 0:02:22.2]} 19. Bxh5 {[%clk 0:01:50.8]} 19... gxh5 {[%clk
0:02:24.1]} 20. Qxh5 {[%clk 0:01:51.4]} 20... Qf6 {[%clk 0:02:25]} 21. Rf1
{[%clk 0:01:40.6]} 21... Qg6 {[%clk 0:02:26.1]} 22. Qh4 {[%clk 0:01:41.7]} 22...
Re6 {[%clk 0:02:26.7]} 23. Rf5 {[%clk 0:01:42]} 23... f6 {[%clk 0:02:21.8]} 24.
Bd2 {[%clk 0:01:22.1]} 24... Ne7 {[%clk 0:02:17]} 25. Rh5 {[%clk 0:01:22.7]}
25... Kh8 {[%clk 0:02:12]} 26. Rf1 {[%clk 0:01:19.9]} 26... Qg7 {[%clk
0:02:05.8]} 27. Qh3 {[%clk 0:01:06.5]} 27... Rd6 {[%clk 0:02:06.3]} 28. g4
{[%clk 0:01:02.8]} 28... Ng6 {[%clk 0:01:54.7]} 29. Rhf5 {[%clk 0:00:56.4]}
29... Rg8 {[%clk 0:01:51]} 30. g5 {[%clk 0:00:49.9]} 30... fxg5 {[%clk
0:01:51.9]} 31. Bxg5 {[%clk 0:00:51.5]} 31... Nf4 {[%clk 0:01:50.4]} 32. Bxf4
{[%clk 0:00:43.6]} 32... exf4 {[%clk 0:01:51.3]} 33. R1xf4 {[%clk 0:00:44.2]}
33... Rh6 {[%clk 0:01:47.5]} 34. Qf3 {[%clk 0:00:36.7]} 34... Rg6 {[%clk
0:01:48.3]} 35. g4 {[%clk 0:00:31.7]} 35... b6 {[%clk 0:01:37.2]} 36. Rf7 {[%clk
0:00:27.1]} 36... Rxg4+ {[%clk 0:01:34.1]} 37. Rxg4 {[%clk 0:00:27.9]} 37...
Qxg4+ {[%clk 0:01:34.9]} 38. Qxg4 {[%clk 0:00:29.8]} 38... Rxg4+ {[%clk
0:01:36.2]} 39. Kf2 {[%clk 0:00:31.7]} 39... a5 {[%clk 0:01:36.8]} 40. Rb7
{[%clk 0:00:24]} 40... Rg6 {[%clk 0:01:37.2]} 41. Kf3 {[%clk 0:00:25]} 41... h5
{[%clk 0:01:33.8]} 42. Rd7 {[%clk 0:00:21.5]} 42... h4 {[%clk 0:01:30.8]} 43.
Rd5 {[%clk 0:00:22.4]} 43... Rg3+ {[%clk 0:01:31.6]} 44. Kf4 {[%clk 0:00:22.5]}
44... Rxd3 {[%clk 0:01:31.8]} 45. Rh5+ {[%clk 0:00:23]} 45... Kg7 {[%clk
0:01:32.8]} 46. Rxh4 {[%clk 0:00:24.3]} 46... a4 {[%clk 0:01:31.6]} 47. Ke5
{[%clk 0:00:21.8]} 47... axb3 {[%clk 0:01:28.9]} 48. axb3 {[%clk 0:00:22.6]}
48... Rxb3 {[%clk 0:01:30.4]} 49. Kd6 {[%clk 0:00:24]} 49... d3 {[%clk
0:01:31.4]} 50. Rh1 {[%clk 0:00:24.6]} 50... Rc3 {[%clk 0:01:20]} 51. Kd5 {[%clk
0:00:21.2]} 51... d2 {[%clk 0:00:43.7]} 52. Rd1 {[%clk 0:00:20.3]} 52... Rd3+
{[%clk 0:00:37]} 53. Kc6 {[%clk 0:00:21.4]} 53... Kf6 {[%clk 0:00:37.8]} 54.
Kxb6 {[%clk 0:00:22.6]} 54... Ke5 {[%clk 0:00:38.7]} 55. Kxc5 {[%clk 0:00:24.1]}
55... Kxe4 {[%clk 0:00:38.8]} 56. Kb5 {[%clk 0:00:15.1]} 56... Rb3+ {[%clk
0:00:38.1]} 57. Kc6 {[%clk 0:00:12.4]} 57... Kd3 {[%clk 0:00:36.9]} 58. c5
{[%clk 0:00:11.9]} 58... Kc2 {[%clk 0:00:37.3]} 59. Rxd2+ {[%clk 0:00:12.7]}
59... Kxd2 {[%clk 0:00:39.2]} 60. Kd6 {[%clk 0:00:13.3]} 60... Rd3+ {[%clk
0:00:38.3]} 61. Ke7 {[%clk 0:00:12]} 61... Rc3 {[%clk 0:00:36]} 62. Kd6 {[%clk
0:00:12.9]} 62... Rd3+ {[%clk 0:00:21.3]} 63. Ke7 {[%clk 0:00:13.6]} 63... Rh3
{[%clk 0:00:09.5]} 64. c6 {[%clk 0:00:13.2]} 64... Rh7+ {[%clk 0:00:06.5]} 65.
Kd8 {[%clk 0:00:13.8]} 65... Rh8+ {[%clk 0:00:07.7]} 66. Kd7 {[%clk 0:00:15.1]}
66... Rh7+ {[%clk 0:00:09.2]} 67. Kd8 {[%clk 0:00:16.4]} 67... Kd3 {[%clk
0:00:10.3]} 68. c7 {[%clk 0:00:17.5]} 68... Rh8+ {[%clk 0:00:11.7]} 69. Kd7
{[%clk 0:00:19.1]} 69... Rh7+ {[%clk 0:00:13.2]} 70. Kd8 {[%clk 0:00:20.6]}
70... Kd4 {[%clk 0:00:14.1]} 71. c8=Q {[%clk 0:00:20.4]} 71... Rh8+ {[%clk
0:00:14.7]} 72. Kc7 {[%clk 0:00:21.8]} 72... Rxc8+ {[%clk 0:00:16.6]} 73. Kxc8
{[%clk 0:00:23.7]} 1/2-1/2